bitfinex/quotes_ETHUSD_20250318
["timestamp","ask_amount","ask_price","bid_price","bid_amount"]
[1742296144879,4.76507941,1897.4,1897.3,5.27052]
[1742296145477,0.05008716,1897.4,1897.3,6.400292]
[1742296145654,5.26529225,1897.9,1897.8,5.26925]
[1742296145855,5.31537941,1897.9,1897.8,5.26925]
[1742296146079,8.31537941,1897.9,1897.8,5.26925]
[1742296146588,5.31537941,1897.9,1897.8,5.26925]
[1742296146887,9.34721735,1897.9,1897.8,5.26925]
[1742296147676,6.34721735,1897.9,1897.8,5.26925]
[1742296147887,4.76507941,1897.9,1897.8,5.26925]
[1742296148944,0.05008716,1897.9,1897.8,5.26925]
[1742296149358,0.05008716,1897.9,1897.8,6.02345]
[1742296149681,17.9863,1898.3,1898.2,5.26814]
[1742296149867,22.9883,1898.3,1898.2,5.26814]
[1742296150069,3.0,1898.2,1898.1,5.26842]
[1742296150249,7.71499225,1898.2,1898.1,5.26842]
[1742296150781,8.12061937,1898.2,1898.1,5.26842]
[1742296151280,7.71499225,1898.2,1898.1,5.26842]
[1742296151447,5.26707,1898.6,1898.3,5.26761]
[1742296151448,6.32639077,1898.6,1898.3,5.26761]
[1742296151780,6.87957879,1898.6,1898.5,5.26731]
[1742296152282,6.87957879,1898.6,1898.4,5.26737]
[1742296152449,7.71499225,1898.5,1898.4,5.26737]
[1742296153992,3.0,1898.5,1898.4,5.26737]
[1742296154295,7.71499225,1898.5,1898.4,5.26737]
[1742296159199,7.71499225,1898.5,1898.4,5.26737]
[1742296159398,3.0,1898.4,1898.3,5.26786]
[1742296159604,7.71499225,1898.4,1898.3,5.26786]
[1742296159902,7.76542812,1898.4,1898.3,5.26786]
[1742296162900,3.05043587,1898.4,1898.3,5.26786]
[1742296163305,3.05043587,1898.4,1898.3,6.321449]
[1742296163603,0.05043587,1898.4,1898.3,7.125249]
[1742296163904,4.71499225,1898.6,1898.5,5.26731]
[1742296164100,4.76574577,1898.6,1898.5,5.26731]
[1742296165105,7.76574577,1898.6,1898.3,6.07162]
[1742296165273,4.71499225,1898.4,1898.3,5.26767]
[1742296165677,4.76574577,1898.4,1898.3,5.26767]
[1742296165883,4.76574577,1898.4,1898.1,11.34047]
[1742296166084,4.71499225,1898.2,1897.9,6.04247]
[1742296166303,4.71499225,1898.0,1897.9,5.26877]
[1742296166485,4.76583795,1898.0,1897.9,5.26877]
[1742296174712,4.76583795,1898.0,1897.8,5.26914]
[1742296174886,5.31613795,1898.0,1897.8,5.26914]
[1742296176915,5.31613795,1898.0,1897.5,0.8048]
[1742296176916,3.0,1897.9,1897.5,0.8048]
[1742296177217,3.0,1897.9,1897.4,5.2702]
[1742296177218,4.71499225,1897.6,1897.4,5.2702]
[1742296177542,4.71499225,1897.6,1897.3,5.2706]
[1742296177543,4.76499784,1897.5,1897.3,5.2706]
[1742296177718,4.71499225,1897.4,1897.2,5.27091]
[1742296177921,4.76480311,1897.3,1897.2,1.129519]
[1742296178104,4.76480311,1897.3,1897.2,5.27092]
[1742296180948,0.04981086,1897.3,1897.2,6.09832]
[1742296181303,3.0,1897.7,1897.5,5.27006]
[1742296181645,7.76480311,1897.6,1897.5,5.27006]
[1742296182421,7.76480311,1897.6,1897.3,5.27053]
[1742296182748,4.71499225,1897.4,1897.2,10.54168]
[1742296183054,4.71499225,1897.3,1897.2,5.27081]
[1742296183218,4.76451606,1897.3,1897.2,5.27081]
[1742296183619,4.76451606,1897.3,1897.1,5.27117]
[1742296183620,4.76451606,1897.3,1897.1,10.54222]
[1742296183838,4.71499225,1897.2,1897.1,10.54222]
[1742296184221,4.71499225,1897.2,1897.1,5.27105]
[1742296184510,4.76451606,1897.2,1897.1,5.27105]
[1742296185425,4.76451606,1897.2,1897.0,6.325724]
[1742296185426,3.0,1897.1,1896.8,10.54383]
[1742296185736,4.71499225,1896.9,1896.8,5.799081]
[1742296186198,4.71499225,1896.9,1896.6,5.27254]
[1742296186318,4.71499225,1896.9,1896.6,10.54502]
[1742296186319,4.71499225,1896.7,1896.6,10.54502]
[1742296186523,4.71499225,1896.7,1896.6,5.27248]
[1742296186766,4.71499225,1896.7,1896.5,6.10133]
[1742296187075,4.71499225,1896.6,1896.5,5.27278]
[1742296187267,4.71499225,1896.7,1896.5,10.54541]
[1742296187457,4.71499225,1896.7,1896.6,5.27259]
[1742296188438,7.71499225,1896.8,1896.7,5.27218]
[1742296188660,3.0,1896.8,1896.7,5.27218]
[1742296191334,7.71499225,1896.8,1896.7,5.27218]
[1742296192266,3.0,1896.8,1896.7,5.27218]
[1742296192571,3.0,1896.8,1896.7,6.404837]
[1742296192770,3.0,1896.8,1896.7,5.27218]
[1742296192945,7.71499225,1896.8,1896.7,5.27218]
[1742296194907,3.0,1896.8,1896.7,5.27218]
[1742296196310,7.71499225,1897.2,1897.1,5.2712]
[1742296196511,3.0,1897.2,1897.1,5.2712]
[1742296196680,4.71499225,1897.5,1897.4,5.27034]
[1742296197301,10.11715079,1897.6,1897.5,5.27009]
[1742296197664,13.11715079,1897.6,1897.5,5.27009]
[1742296198167,10.11715079,1897.6,1897.4,10.5406]
[1742296198481,4.71499225,1897.5,1897.4,5.27026]
[1742296198865,5.72670733,1897.5,1897.2,5.27091]
[1742296199065,4.71499225,1897.3,1897.2,5.27091]
[1742296200171,0.5503,1897.4,1897.1,5.2712]
[1742296200172,4.71499225,1897.5,1897.4,5.27026]
[1742296201897,3.0,1897.5,1897.4,5.27026]
[1742296202103,7.71499225,1897.5,1897.4,5.27026]
[1742296202309,3.0,1897.5,1897.4,6.404168]
[1742296202515,4.71499225,1897.7,1897.6,5.26981]
[1742296202680,17.436,1897.9,1897.7,5.26951]
[1742296202881,17.436,1897.9,1897.7,5.2694]
[1742296203185,3.0,1897.8,1897.7,5.2694]
[1742296203980,7.71499225,1897.8,1897.7,5.2694]
[1742296205681,7.71499225,1897.8,1897.1,10.27204]
[1742296205682,3.0,1897.6,1897.2,0.8038]
[1742296205994,4.71499225,1897.3,1897.2,6.07472]
[1742296206180,4.71499225,1897.3,1897.2,5.27092]
[1742296209212,3.0,1897.4,1897.3,5.27064]
[1742296209405,7.71499225,1897.4,1897.2,10.54159]
[1742296209602,7.71499225,1897.4,1897.3,5.27064]
[1742296209839,7.71499225,1897.4,1897.2,5.27077]
[1742296210055,7.71499225,1897.4,1897.2,10.54158]
[1742296210346,12.98550225,1897.4,1897.0,6.02684]
[1742296210651,4.71499225,1897.2,1897.1,5.27115]
[1742296212151,7.71499225,1897.2,1897.1,5.27115]
[1742296216367,3.0,1897.1,1896.9,5.27171]
[1742296216558,3.0,1897.1,1896.8,5.27194]
[1742296216559,4.71499225,1897.0,1896.8,5.27194]
[1742296216731,4.71499225,1896.9,1896.8,5.27194]
[1742296217075,3.0,1896.8,1896.7,5.27217]
[1742296218061,4.71499225,1896.8,1896.6,5.27247]
[1742296218261,7.71499225,1896.7,1896.6,5.27247]
[1742296219565,3.0,1896.7,1896.6,6.407552]
[1742296219763,3.0,1896.7,1896.6,7.164952]
[1742296220067,4.71499225,1897.1,1896.8,0.754]
[1742296220237,4.71499225,1897.1,1896.9,5.27175]
[1742296220238,3.0,1897.0,1896.9,5.27175]
[1742296220669,3.0,1897.0,1896.9,6.928707]
[1742296220872,4.71499225,1897.3,1897.2,5.27071]
[1742296221036,7.71499225,1897.3,1897.2,5.27071]
[1742296221747,3.0,1897.3,1897.2,5.27071]
[1742296221943,3.0,1897.3,1897.2,6.931469]
[1742296223344,4.71499225,1897.4,1897.3,5.27064]
[1742296223742,7.71499225,1897.4,1897.3,5.27064]
[1742296225781,7.71499225,1897.4,1897.2,5.27082]
[1742296226154,7.71499225,1897.4,1897.1,5.27107]
[1742296226336,7.71499225,1897.4,1897.0,5.27144]
[1742296226337,7.71499225,1897.2,1897.0,5.27144]
[1742296226543,8.26529225,1897.2,1897.0,10.54281]
[1742296226844,7.71499225,1897.2,1897.1,5.2712]
[1742296229557,7.71499225,1897.2,1896.9,5.27164]
[1742296229760,3.0,1897.2,1897.0,5.27145]
[1742296230069,0.5503,1897.1,1897.0,5.27145]
[1742296230992,3.0,1897.2,1897.1,5.2712]
[1742296231357,3.0,1897.2,1897.0,5.27145]
[1742296231558,3.0,1897.0,1896.9,5.27173]
[1742296232354,3.5503,1897.0,1896.8,5.27191]
[1742296232583,7.71499225,1896.9,1896.8,5.27191]
[1742296232765,7.87716681,1896.9,1896.8,5.27191]
[1742296232977,7.87716681,1896.9,1896.8,6.10011]
[1742296236700,7.87716681,1896.9,1896.8,5.27191]
[1742296236907,7.87716681,1896.9,1896.7,10.54438]
[1742296237103,7.87716681,1896.9,1896.7,10.5444]
[1742296237475,7.87716681,1896.9,1896.8,5.27203]
[1742296239206,3.16217456,1896.9,1896.8,6.407802]
[1742296239914,3.16217456,1896.9,1896.8,7.190602]
[1742296239915,0.16217456,1896.9,1896.8,7.190602]
[1742296240313,4.71499225,1897.3,1897.2,5.27092]
[1742296241022,4.71499225,1897.5,1897.1,6.054]
[1742296241225,4.71499225,1897.5,1897.4,5.27036]
[1742296241521,7.71499225,1897.5,1897.4,5.27036]
[1742296242298,4.71499225,1897.6,1897.5,5.27009]
[1742296243009,22.15099225,1897.9,1897.8,5.26925]
[1742296243197,4.71499225,1897.9,1897.8,5.26925]
[1742296243604,7.71499225,1897.9,1897.8,5.26925]
[1742296243980,4.71499225,1897.9,1897.8,5.26925]
[1742296244391,4.71499225,1898.0,1897.9,5.26875]
[1742296245004,7.71499225,1898.0,1897.9,5.26875]
[1742296247310,3.0,1898.0,1897.9,5.26875]
[1742296247813,7.71499225,1898.0,1897.9,5.26875]
[1742296248013,8.48649148,1898.0,1897.8,5.26925]
[1742296248219,5.26529225,1897.9,1897.7,10.53883]
[1742296248515,7.71499225,1897.8,1897.7,10.53883]
[1742296249218,3.0,1897.8,1897.7,10.53883]
[1742296249416,3.0,1897.8,1897.7,12.366913]
[1742296249912,7.71499225,1897.8,1897.7,11.592713]
[1742296250118,7.87814073,1897.8,1897.7,10.53883]
[1742296250281,3.16314848,1897.8,1897.7,10.53883]
[1742296250478,3.16314848,1897.8,1897.7,11.29413]
[1742296252009,7.87814073,1897.8,1897.7,11.29413]
[1742296252398,7.87814073,1897.8,1897.7,10.53883]
[1742296258320,3.16314848,1897.8,1897.7,10.53883]
[1742296258501,3.16314848,1897.8,1897.7,11.671203]
[1742296261526,0.16314848,1897.8,1897.7,12.504403]
[1742296261894,3.0,1898.0,1897.9,5.26898]
[1742296262346,16.83699,1898.4,1897.9,5.26898]
[1742296262347,4.71499225,1898.2,1898.1,5.26842]
[1742296262631,18.21010421,1898.5,1898.3,5.26787]
[1742296262632,22.435,1898.5,1898.3,5.26787]
[1742296262928,22.435,1898.5,1898.3,10.5355]
[1742296262929,4.71499225,1898.4,1898.3,10.5355]
[1742296263302,7.71499225,1898.4,1898.3,10.5355]
[1742296263511,3.0,1898.4,1898.3,12.36055]
[1742296263816,4.71499225,1898.5,1898.4,5.26759]
[1742296264415,4.71499225,1898.6,1898.5,5.26712]
[1742296264997,7.87872479,1898.6,1898.5,5.26712]
[1742296269519,7.87872479,1898.6,1898.5,6.08402]
[1742296269837,7.87872479,1898.6,1898.5,7.219169]
[1742296271206,7.87872479,1898.6,1898.5,6.402269]
[1742296272097,7.87872479,1898.6,1898.5,5.26712]
[1742296273552,7.87872479,1898.6,1898.4,5.26759]
[1742296273553,3.0,1898.5,1898.4,5.26759]
[1742296273840,4.71499225,1898.6,1898.5,5.26731]
[1742296276341,7.71499225,1898.8,1898.7,5.26676]
[1742296277012,4.71499225,1898.8,1898.7,5.26676]
[1742296277266,7.71499225,1898.8,1898.7,6.320128]
[1742296277803,3.0,1898.8,1898.7,6.320128]
[1742296278015,22.14399225,1899.1,1899.0,5.26592]
[1742296278310,4.71499225,1899.2,1899.1,5.26565]
[1742296279147,7.71499225,1899.2,1899.1,5.26565]
[1742296279340,11.50909646,1899.4,1899.3,5.26509]
[1742296279544,0.5503,1899.8,1899.3,0.7607]
[1742296279840,0.5503,1899.8,1899.7,5.26398]
[1742296280746,5.26529225,1899.8,1899.3,0.7607]
[1742296280943,4.71499225,1899.7,1899.6,5.26403]
[1742296281146,7.71499225,1899.7,1899.5,10.52886]
[1742296281456,7.71499225,1899.7,1899.5,5.2644]
[1742296281761,7.71499225,1899.7,1899.4,5.26465]
[1742296281762,12.97900225,1899.7,1899.4,5.26465]
[1742296282045,7.71499225,1899.5,1899.4,10.52929]
[1742296282213,7.71499225,1899.5,1899.4,5.26464]
[1742296285146,7.71499225,1899.5,1899.3,5.26498]
[1742296285453,7.71499225,1899.5,1899.4,5.26482]
[1742296287046,7.71499225,1899.5,1899.3,5.26498]
[1742296287252,7.71499225,1899.5,1899.3,10.52994]
[1742296287440,7.71499225,1899.5,1899.3,5.26496]
[1742296287845,3.5503,1899.4,1899.1,5.26564]
[1742296288045,4.71499225,1899.3,1899.1,5.26555]
[1742296288349,4.71499225,1899.3,1899.2,5.26535]
[1742296290055,7.71499225,1899.3,1899.2,5.26535]
[1742296290855,3.0,1899.3,1899.2,5.26535]
[1742296291018,3.0,1899.5,1899.4,6.05582]
[1742296291218,10.73499225,1899.7,1899.4,6.05582]
[1742296291465,5.26529225,1900.1,1899.3,0.7992]
[1742296291630,4.71499225,1900.2,1900.0,5.26315]
[1742296291956,4.71499225,1900.2,1900.1,5.2627]
[1742296292157,0.52652923,1900.2,1899.9,5.26332]
[1742296292321,5.26269,1900.2,1899.9,5.26332]
[1742296292527,3.0,1900.1,1899.9,5.26332]
[1742296292861,4.71499225,1900.0,1899.7,5.26398]
[1742296293036,4.71499225,1899.9,1899.8,5.26351]
[1742296293623,7.71499225,1899.9,1899.8,5.26351]
[1742296295125,7.87455049,1899.9,1899.8,5.26351]
[1742296297740,3.15955824,1899.9,1899.8,5.26351]
[1742296298056,3.15955824,1899.9,1899.8,6.316256]
[1742296298769,0.15955824,1899.9,1899.8,7.114556]
[1742296299134,4.71499225,1900.1,1899.9,5.26319]
[1742296300059,4.71499225,1900.1,1900.0,5.26315]
[1742296300229,4.71499225,1900.1,1899.9,5.26319]
[1742296300429,3.0,1900.0,1899.7,5.26377]
[1742296300637,3.0,1900.0,1899.8,5.26357]
[1742296300638,4.71499225,1899.9,1899.8,5.26357]
[1742296300834,4.71499225,1899.9,1899.7,5.26377]
[1742296301062,4.71499225,1899.9,1899.7,10.52757]
[1742296301461,4.71499225,1899.9,1899.7,10.52765]
[1742296301960,4.71499225,1899.9,1899.6,6.03351]
[1742296302140,4.71499225,1899.7,1899.6,5.26411]
[1742296302967,7.71499225,1899.9,1899.6,1.052854]
[1742296303137,3.0,1900.1,1899.9,5.2633]
[1742296303338,7.71499225,1900.1,1899.9,10.52655]
[1742296304274,7.71499225,1900.1,1899.9,5.26325]
[1742296304448,4.71499225,1900.0,1899.9,5.26325]
[1742296304654,7.71499225,1900.1,1900.0,5.26315]
[1742296304872,7.71499225,1900.1,1900.0,6.05215]
[1742296305378,7.71499225,1900.2,1900.1,5.26288]
[1742296305906,4.71499225,1900.3,1900.2,5.2626]
[1742296306382,7.71499225,1900.3,1900.2,5.2626]
[1742296306754,3.0,1900.3,1900.2,5.2626]
[1742296306954,4.71499225,1900.4,1900.3,5.26232]
[1742296307177,7.71499225,1900.4,1900.3,5.26232]
[1742296309749,3.0,1900.4,1900.3,5.26232]
[1742296309950,0.16250316,1900.4,1900.3,5.26232]
[1742296310174,0.16250316,1900.4,1900.3,6.02792]
[1742296310373,4.87749541,1900.4,1900.3,7.3148544]
[1742296310763,0.16250316,1900.4,1900.3,7.3148544]
[1742296311175,3.0,1900.6,1900.5,5.26177]
[1742296311478,4.71499225,1900.8,1900.7,5.26121]
[1742296311796,4.72499225,1900.9,1900.8,5.26094]
[1742296312163,4.72499225,1900.9,1900.6,5.26149]
[1742296312363,4.71499225,1900.7,1900.6,5.26149]
[1742296313891,4.71499225,1900.7,1900.5,5.26166]
[1742296314189,4.71499225,1900.6,1900.5,5.26166]
[1742296315302,4.71499225,1900.6,1900.3,7.3788144]
[1742296315489,4.71499225,1900.4,1900.3,5.26223]
[1742296315782,4.71499225,1900.4,1900.2,10.52497]
[1742296315990,4.71499225,1900.3,1900.2,5.26248]
[1742296320289,3.0,1900.5,1900.4,5.26185]
[1742296320597,4.71499225,1900.7,1900.6,5.26149]
[1742296320980,7.71499225,1900.7,1900.6,5.26149]
[1742296321384,7.71499225,1900.7,1900.6,6.313804]
[1742296321385,3.0,1900.7,1900.6,6.313804]
[1742296321692,4.72499225,1900.9,1900.8,5.26094]
[1742296322197,4.72499225,1900.9,1900.7,5.26121]
[1742296322357,7.71499225,1900.8,1900.7,5.26113]
[1742296323069,7.71499225,1900.8,1900.6,7.075694]
[1742296323070,7.71499225,1900.8,1900.6,10.52273]
[1742296323392,4.71499225,1900.7,1900.5,10.25272]
[1742296323693,4.71499225,1900.6,1900.5,5.26157]
[1742296324962,4.877721,1900.6,1900.5,5.26157]
[1742296328902,4.877721,1900.6,1900.3,6.03328]
[1742296329107,0.16272875,1900.6,1900.4,5.26188]
[1742296329598,10.52279,1900.7,1900.3,5.26221]
[1742296329832,0.16282096,1900.5,1900.3,5.26221]
[1742296330009,0.16282096,1900.5,1900.3,10.52439]
[1742296330230,4.71499225,1900.4,1900.2,5.26247]
[1742296330376,4.71499225,1900.4,1900.3,5.26232]
[1742296330779,4.87781321,1900.4,1900.3,5.26232]
[1742296331221,4.87781321,1900.4,1900.2,10.52491]
[1742296331391,4.87781321,1900.4,1900.2,5.26244]
[1742296331726,4.87781321,1900.4,1900.3,5.26232]
[1742296334243,4.87781321,1900.4,1900.2,5.26244]
[1742296334244,3.0,1900.3,1900.2,5.26244]
[1742296334390,8.81263,1900.3,1900.0,5.26315]
[1742296334712,3.0,1900.1,1900.0,5.26315]
[1742296335127,0.5503,1900.0,1899.5,0.8187]
[1742296335281,4.71499225,1899.7,1899.6,5.26403]
[1742296335680,4.87781321,1899.7,1899.6,5.26403]
[1742296335881,4.87781321,1899.7,1899.6,6.398745]
[1742296338411,0.16282096,1899.7,1899.6,6.398745]
[1742296338985,3.0,1899.8,1899.7,5.26398]
[1742296339298,4.71499225,1900.1,1899.8,6.03271]
[1742296339617,7.71499225,1900.1,1900.0,5.26295]
[1742296339982,7.877075,1900.1,1900.0,5.26295]
[1742296340795,7.877075,1900.1,1899.9,5.26332]
[1742296340997,7.877075,1900.1,1899.9,5.26328]
[1742296341200,7.877075,1900.1,1900.0,5.26315]
[1742296342827,7.877075,1900.1,1899.9,5.26328]
[1742296343521,7.877075,1900.1,1899.9,10.52661]
[1742296343912,7.877075,1900.1,1899.9,5.26328]
[1742296344112,7.877075,1900.1,1899.9,10.52656]
[1742296344291,7.877075,1900.1,1899.9,5.26328]
[1742296345608,7.877075,1900.1,1899.9,10.52648]
[1742296346017,7.877075,1900.1,1900.0,5.26315]
[1742296347725,3.16208275,1900.1,1900.0,6.395135]
[1742296347924,3.16208275,1900.1,1900.0,7.188635]
[1742296348296,0.16208275,1900.1,1900.0,7.188635]
[1742296348497,4.71499225,1900.4,1900.3,5.26232]
[1742296348719,7.87678789,1900.4,1900.3,5.26232]
[1742296348891,4.87678789,1900.4,1900.3,5.26232]
[1742296350739,4.87678789,1900.4,1900.3,6.314801]
[1742296350906,0.16179564,1900.4,1900.3,7.097101]
[1742296352226,4.71499225,1900.6,1900.5,5.26177]
[1742296352420,7.71499225,1900.6,1900.5,5.26177]
[1742296352729,4.71499225,1900.7,1900.6,5.26149]
[1742296353536,4.87745439,1900.7,1900.6,5.26149]
[1742296355228,4.87745439,1900.7,1900.6,6.390046]
[1742296355805,3.16246214,1900.7,1900.6,6.390046]
[1742296356427,0.16246214,1900.7,1900.6,6.390046]
[1742296356740,7.72499225,1900.9,1900.8,5.26094]
[1742296357448,4.72499225,1900.9,1900.8,6.05794]
[1742296357821,0.01,1900.9,1900.8,7.189844]
[1742296358612,0.01,1900.9,1900.8,12.180844]
[1742296361341,1e-05,1900.9,1900.8,26.60583625]
[1742296361546,4.71499225,1901.6,1901.5,5.259]
[1742296364547,0.5503,1901.9,1901.8,5.25796]
[1742296365352,3.5503,1901.9,1901.8,5.25796]
[1742296365716,6.02,1902.2,1902.0,5.25742]
[1742296365717,0.5503,1902.1,1902.0,5.25742]
[1742296365951,5.26529225,1902.1,1902.0,5.25742]
[1742296366560,4.71499225,1902.1,1902.0,5.25742]
[1742296370062,4.87960632,1902.1,1902.0,5.25742]
[1742296370921,0.16461407,1902.1,1902.0,5.25742]
[1742296371171,7.71499225,1902.2,1902.1,5.25734]
[1742296372066,7.71499225,1902.3,1902.2,5.25707]
[1742296372437,4.71499225,1902.3,1902.2,5.25707]
[1742296375774,5.26529225,1902.3,1902.2,5.25707]
[1742296376068,5.26529225,1902.3,1902.1,10.51457]
[1742296376244,4.71499225,1902.2,1902.1,10.51457]
[1742296376836,4.71499225,1902.2,1902.0,5.25738]
[1742296377037,7.71499225,1902.1,1901.9,5.25777]
[1742296377237,4.71499225,1902.0,1901.9,5.25777]
[1742296377434,5.26529225,1902.0,1901.9,5.25777]
[1742296377663,8.26529225,1902.0,1901.9,5.25777]
[1742296379588,8.26529225,1902.0,1901.3,1.86604296]
[1742296379589,14.34944148,1902.0,1901.3,1.86604296]
[1742296379755,4.71499225,1901.7,1901.6,5.25854]
[1742296380373,8.26529225,1901.7,1901.5,5.25889]
[1742296380573,5.26529225,1901.7,1901.6,5.25872]
[1742296381065,4.71499225,1901.7,1901.6,5.25872]
[1742296382489,7.71499225,1901.9,1901.8,5.25795]
[1742296384480,4.71499225,1902.2,1901.9,5.25789]
[1742296384684,17.9413,1902.3,1902.1,5.25734]
[1742296384876,17.9413,1902.3,1902.1,5.25722]
[1742296385196,3.16576075,1902.2,1902.1,5.25722]
[1742296385363,7.880753,1902.2,1902.1,5.25722]
[1742296387194,7.880753,1902.2,1902.1,6.308692]
[1742296387388,3.16576075,1902.2,1902.1,7.125992]
[1742296387564,4.880753,1902.2,1902.1,7.125992]
[1742296388597,0.16576075,1902.2,1902.1,7.125992]
[1742296389485,4.71499225,1902.4,1902.3,5.25679]
[1742296391202,18.0553356,1902.9,1902.7,5.25558]
[1742296391396,4.71499225,1902.8,1902.7,5.25558]
[1742296391601,7.71499225,1902.8,1902.7,5.25558]
[1742296391993,4.71499225,1902.8,1902.7,5.25558]
[1742296392167,4.71499225,1902.8,1902.6,10.51181]
[1742296392371,4.71499225,1902.7,1902.6,5.25585]
[1742296392901,3.0,1902.8,1902.7,5.2556]
[1742296393101,4.71499225,1902.8,1902.7,5.2556]
[1742296393273,4.71499225,1902.8,1902.7,6.83233]
[1742296393809,0.6633356,1902.9,1902.8,5.25541]
[1742296393984,5.37832785,1902.9,1902.8,5.25541]
[1742296394303,4.82802785,1902.9,1902.8,5.25541]
[1742296394908,4.82802785,1902.9,1902.7,6.8323]
[1742296395106,4.82802785,1902.9,1902.7,5.25554]
[1742296395107,4.71499225,1902.8,1902.7,5.25554]
[1742296395526,0.1130356,1902.9,1902.8,6.05721]
[1742296400083,0.2808219,1902.9,1902.8,6.05721]
[1742296400271,0.1130356,1902.9,1902.8,6.05721]
[1742296400478,0.28085258,1902.9,1902.8,6.05721]
[1742296400703,0.1130356,1902.9,1902.8,7.687085]
[1742296400909,0.28085258,1902.9,1902.8,7.687085]
[1742296401687,4.99584483,1902.9,1902.8,6.885285]
[1742296401886,0.28085258,1902.9,1902.8,6.885285]
[1742296402728,0.28085258,1902.9,1902.8,7.707685]
[1742296404911,0.28085258,1902.9,1902.8,6.885285]
[1742296404912,4.99584483,1902.9,1902.8,6.885285]
[1742296407531,4.99584483,1902.9,1902.6,5.25595]
[1742296407832,4.71499225,1902.7,1902.6,10.51177]
[1742296408421,4.88286035,1902.7,1902.6,5.25582]
[1742296408602,4.88286035,1902.7,1902.5,5.25621]
[1742296409033,4.88286035,1902.7,1902.4,5.25641]
[1742296409331,4.88286035,1902.7,1902.5,5.25618]
[1742296409547,4.88286035,1902.7,1902.6,5.25596]
[1742296412933,4.88286035,1902.7,1902.5,10.51233]
[1742296413698,0.1678681,1902.7,1902.6,5.25596]
[1742296414030,4.88286035,1902.7,1902.6,5.25596]
[1742296414824,7.88286035,1902.7,1902.6,5.25596]
[1742296415029,7.88286035,1902.7,1902.6,6.04076]
[1742296416242,7.88286035,1902.7,1902.6,7.170448]
[1742296417044,3.1678681,1902.7,1902.6,7.170448]
[1742296418741,0.1678681,1902.7,1902.6,7.170448]
[1742296419041,0.1678681,1902.7,1902.6,7.22300198]
[1742296419341,3.1130356,1902.9,1902.8,5.25541]
[1742296419541,7.82802785,1902.9,1902.8,5.25541]
[1742296420417,7.82802785,1902.9,1902.7,5.25547]
[1742296420938,8.37832785,1902.9,1902.7,5.25547]
[1742296422225,8.37832785,1902.9,1902.6,5.25588]
[1742296422421,4.71499225,1902.7,1902.6,5.25588]
[1742296423151,4.71499225,1902.7,1902.6,6.30708]
[1742296425651,4.71499225,1902.7,1902.6,5.25588]
[1742296427024,4.71499225,1902.7,1902.5,10.51225]
[1742296427753,4.71499225,1902.7,1902.6,5.25596]
[1742296430027,4.88233883,1902.7,1902.6,5.25596]
[1742296430353,4.88233883,1902.7,1902.4,0.7686]
[1742296430534,0.16734658,1902.7,1902.5,10.51208]
[1742296430734,4.71499225,1902.6,1902.5,10.51208]
[1742296431034,4.88234908,1902.6,1902.5,10.51208]
[1742296431354,4.88234908,1902.6,1902.5,11.640148]
[1742296432057,5.43264908,1902.6,1902.5,5.25602]
[1742296433157,3.0,1902.5,1902.4,5.25648]
[1742296433354,3.0,1902.5,1902.3,5.25673]
[1742296433561,4.71499225,1902.4,1902.3,5.25673]
[1742296433760,4.88234908,1902.4,1902.3,5.25673]
[1742296434054,4.88234908,1902.4,1902.1,1.051472]
[1742296434055,4.88234908,1902.4,1902.1,5.2572]
[1742296434258,3.0,1902.3,1902.2,5.25703]
[1742296434574,4.71499225,1902.2,1902.1,5.2572]
[1742296435061,4.88204224,1902.2,1902.1,5.2572]
[1742296435237,4.88204224,1902.2,1902.1,6.308679]
[1742296435760,4.88204224,1902.2,1902.1,7.129279]
[1742296439969,0.16704999,1902.2,1902.1,7.129279]
[1742296440264,3.0,1902.5,1902.4,5.25651]
[1742296440265,7.71499225,1902.5,1902.4,5.25651]
[1742296443459,3.0,1902.5,1902.4,5.25651]
[1742296443666,7.71499225,1902.5,1902.4,6.05551]
[1742296444263,3.0,1902.5,1902.4,7.186728]
[1742296444648,4.71499225,1902.6,1902.5,5.25624]
[1742296445065,7.88187859,1902.6,1902.5,5.25624]
[1742296448752,8.43217859,1902.6,1902.5,5.25624]
[1742296448953,7.88187859,1902.6,1902.5,5.25624]
[1742296449152,7.88187859,1902.6,1902.5,6.307504]
[1742296449576,7.88187859,1902.6,1902.5,5.25624]
[1742296450977,7.88187859,1902.6,1902.4,10.5128]
[1742296451173,7.88187859,1902.6,1902.5,5.25624]
[1742296451375,7.88187859,1902.6,1902.4,10.51279]
[1742296451878,7.88187859,1902.6,1902.5,5.25624]
[1742296453172,7.88187859,1902.6,1902.4,5.25639]
[1742296453542,3.5503,1902.5,1902.0,5.7953]
[1742296453761,3.5503,1902.5,1902.3,5.25678]
[1742296453967,0.16715227,1902.4,1902.2,10.51381]
[1742296454398,0.16715227,1902.4,1902.2,10.51384]
[1742296454697,3.0,1902.3,1902.1,5.25722]
[1742296454861,4.71499225,1902.2,1902.1,5.25722]
[1742296455063,4.88188881,1902.2,1902.1,5.25722]
[1742296459400,3.0,1902.1,1901.9,5.25789]
[1742296459570,7.71499225,1902.0,1901.9,10.51561]
[1742296459772,7.88170466,1902.0,1901.9,10.51561]
[1742296460080,3.16671241,1902.0,1901.9,10.51561]
[1742296460269,3.16671241,1902.0,1901.9,11.34141]
[1742296460463,0.16671241,1902.0,1901.9,12.475551]
[1742296460670,4.71499225,1902.4,1902.2,5.25707]
[1742296460902,4.71499225,1902.4,1902.3,5.25679]
[1742296461324,7.71499225,1902.4,1902.3,5.25679]
[1742296462383,7.71499225,1902.4,1902.2,10.51399]
[1742296462575,7.71499225,1902.4,1902.3,5.25679]
[1742296463181,7.71499225,1902.4,1902.2,5.25691]
[1742296463410,12.4299845,1902.4,1902.1,10.51452]
[1742296463714,7.71499225,1902.2,1902.1,10.51452]
[1742296463913,7.71499225,1902.2,1902.1,5.25722]
[1742296464725,3.0,1902.1,1901.9,5.25767]
[1742296464930,3.0,1902.2,1902.0,5.25762]
[1742296465218,3.0,1902.2,1901.9,5.25767]